bitfinex/quotes_ETHUSD_20250724
["timestamp","ask_amount","ask_price","bid_price","bid_amount"]
[1753327194227,4.16,3658.3,3658.1,0.137]
[1753327195522,0.98452048,3658.2,3658.1,0.001]
[1753327195735,33.7181053,3658.2,3658.1,0.001]
[1753327195915,33.69708482,3658.2,3658.1,0.001]
[1753327196119,6.69708482,3658.2,3658.1,0.001]
[1753327196340,36.69708482,3658.2,3658.1,0.001]
[1753327196736,3.9635,3658.2,3658.1,0.001]
[1753327197217,8.1215,3658.2,3658.1,0.001]
[1753327197448,10.85508482,3658.2,3658.1,0.001]
[1753327197746,8.1215,3658.2,3658.1,0.001]
[1753327198514,10.85508482,3658.2,3658.1,0.001]
[1753327198937,8.1215,3658.2,3658.1,0.001]
[1753327199379,10.85508482,3658.2,3658.1,0.001]
[1753327199850,8.1215,3658.2,3658.1,0.001]
[1753327200562,3.9635,3658.2,3658.1,0.001]
[1753327200771,10.41798482,3658.2,3658.1,0.001]
[1753327200929,10.85508482,3658.2,3658.1,0.001]
[1753327201331,45.16731574,3658.2,3658.1,0.001]
[1753327202265,45.75668299,3658.2,3658.1,0.001]
[1753327202567,45.16731574,3658.2,3658.1,0.001]
[1753327203346,36.69708482,3658.2,3658.1,0.001]
[1753327203534,40.85708482,3658.2,3658.1,0.001]
[1753327203944,3.26058275,3657.4,3657.3,0.001]
[1753327204282,36.26088181,3657.0,3656.9,0.001]
[1753327204566,40.42188181,3657.0,3656.9,0.001]
[1753327204785,40.85898181,3657.0,3656.9,0.001]
[1753327205339,3.5264,3657.0,3656.9,0.001]
[1753327205545,41.01700229,3657.0,3656.9,0.001]
[1753327205766,40.99598181,3657.0,3656.9,0.001]
[1753327210599,11.01838181,3657.0,3656.9,0.001]
[1753327210985,41.01838181,3657.0,3656.9,0.001]
[1753327213357,40.55888181,3657.0,3656.9,0.001]
[1753327213593,41.01838181,3657.0,3656.9,1e-08]
[1753327217105,41.02238181,3657.0,3656.9,1e-08]
[1753327217880,38.02238181,3657.0,3656.9,1e-08]
[1753327218109,41.02238181,3657.0,3656.9,1e-08]
[1753327218725,7.302,3657.0,3656.9,1e-08]
[1753327220431,7.302,3657.0,3656.9,0.44180001]
[1753327221645,4.165,3657.0,3656.9,0.44180001]
[1753327222148,7.165,3657.0,3656.9,0.44180001]
[1753327223624,4.165,3657.0,3656.9,0.44180001]
[1753327227754,4.165,3657.0,3656.9,1e-08]
[1753327228557,4.165,3657.0,3656.9,0.44180001]
[1753327229217,4.165,3657.0,3656.9,3.1763566]
[1753327229417,4.165,3657.0,3656.9,0.44180001]
[1753327231355,4.165,3657.0,3656.9,1e-08]
[1753327233717,7.42588181,3657.0,3656.9,1e-08]
[1753327233963,37.88538181,3657.0,3656.9,1e-08]
[1753327234263,4.165,3657.0,3656.9,1e-08]
[1753327234970,6.89948181,3657.0,3656.9,1e-08]
[1753327235162,4.165,3657.0,3656.9,1e-08]
[1753327235452,0.136,3657.3,3656.9,0.44180001]
[1753327235632,4.159,3657.2,3656.9,0.44180001]
[1753327235865,0.002,3657.0,3656.9,3.17635249]
[1753327236064,0.002,3657.0,3656.9,2.73455249]
[1753327236283,0.002,3657.0,3656.9,0.44180001]
[1753327237082,0.002,3657.0,3656.9,9.94970766]
[1753327237261,0.002,3657.0,3656.9,9.9223621]
[1753327238673,4.16,3658.2,3658.1,2.73365955]
[1753327238974,3.138,3658.5,3658.1,3.17545955]
[1753327239177,3.138,3658.5,3658.2,0.4418]
[1753327239178,0.002,3658.5,3658.2,0.4418]
[1753327239381,0.002,3658.5,3658.4,3.68453538]
[1753327239895,0.002,3658.5,3658.4,4.11773538]
[1753327240592,0.002,3658.5,3658.4,1.3843]
[1753327240959,0.002,3658.5,3658.4,4.11773538]
[1753327243183,0.002,3658.5,3658.4,4.66773538]
[1753327243388,0.002,3658.5,3658.4,4.11773538]
[1753327245279,0.002,3658.5,3658.4,5.2192655]
[1753327247966,0.002,3658.5,3658.4,3.9709655]
[1753327248263,0.002,3658.5,3658.4,4.4041655]
[1753327249220,0.5284,3658.5,3658.4,0.136]
[1753327249417,0.002,3658.5,3658.4,0.136]
[1753327251568,0.002,3658.5,3658.4,2.86943538]
[1753327251773,0.002,3658.5,3658.4,3.30263538]
[1753327252183,0.002,3658.5,3658.4,0.136]
[1753327252394,0.002,3658.5,3658.2,2.86957313]
[1753327253011,0.002,3658.5,3658.3,2.73345861]
[1753327254311,0.002,3658.5,3658.4,2.73343538]
[1753327254612,0.002,3658.5,3658.4,8.86555555]
[1753327254799,0.002,3658.5,3658.4,9.29875555]
[1753327255682,0.002,3658.5,3658.4,9.84875555]
[1753327260902,0.002,3658.5,3658.4,9.84775555]
[1753327261831,0.002,3658.5,3658.4,5.68775555]
[1753327262035,0.002,3658.5,3658.4,9.84775555]
[1753327262845,0.002,3658.5,3658.4,5.68775555]
[1753327263145,0.002,3658.5,3658.4,9.84775555]
[1753327263301,0.002,3658.5,3658.4,14.1537247]
[1753327267346,0.002,3658.5,3658.4,9.9937247]
[1753327267563,0.002,3658.5,3658.4,14.1507247]
[1753327269645,0.002,3658.5,3658.4,8.04505555]
[1753327269848,0.002,3658.5,3658.4,7.02543538]
[1753327270054,0.002,3658.5,3658.4,4.292]
[1753327271058,0.002,3658.5,3658.4,0.136]
[1753327271465,0.002,3658.5,3658.4,4.293]
[1753327271641,0.002,3658.5,3658.4,0.136]
[1753327271830,0.002,3658.5,3658.4,4.292]
[1753327272962,0.002,3658.5,3658.4,0.136]
[1753327273161,0.002,3658.5,3658.4,4.292]
[1753327275541,0.002,3658.5,3658.4,7.02543538]
[1753327275874,0.002,3658.5,3658.4,11.33140453]
[1753327276241,0.002,3658.5,3658.4,11.78400453]
[1753327276564,0.002,3658.5,3658.4,13.78476324]
[1753327277276,0.002,3658.5,3658.4,13.33216324]
[1753327278248,0.002,3658.5,3658.4,9.17716324]
[1753327278459,0.002,3658.5,3658.4,13.33216324]
[1753327279589,0.002,3658.5,3658.4,9.17716324]
[1753327279785,0.002,3658.5,3658.4,13.33216324]
[1753327281097,0.002,3658.5,3658.4,14.59676324]
[1753327283463,0.002,3658.5,3658.4,10.44176324]
[1753327283765,0.002,3658.5,3658.4,14.59576324]
[1753327286625,0.002,3658.5,3658.4,10.44176324]
[1753327286828,0.002,3658.5,3658.4,14.59376324]
[1753327288025,0.002,3658.5,3658.4,10.44176324]
[1753327288226,0.002,3658.5,3658.4,14.59276324]
[1753327288430,0.002,3658.5,3658.4,10.44176324]
[1753327288615,0.002,3658.5,3658.4,14.59276324]
[1753327291026,0.002,3658.5,3658.4,10.44176324]
[1753327291225,0.002,3658.5,3658.4,14.59276324]
[1753327291425,0.002,3658.5,3658.4,10.44176324]
[1753327291819,0.002,3658.5,3658.4,14.59276324]
[1753327295034,0.002,3658.5,3658.4,4.87119409]
[1753327295208,0.002,3658.5,3658.4,11.87640453]
[1753327296742,0.002,3658.5,3658.4,7.72540453]
[1753327296939,0.002,3658.5,3658.4,11.87640453]
[1753327297157,0.002,3658.5,3658.4,12.32900453]
[1753327300548,0.002,3658.5,3658.4,8.17800453]
[1753327300749,0.002,3658.5,3658.4,13.42015703]
[1753327301769,0.002,3658.5,3658.4,9.26915703]
[1753327301934,0.002,3658.5,3658.4,13.42015703]
[1753327304167,0.002,3658.5,3658.4,12.96755703]
[1753327305165,0.002,3658.5,3658.4,13.43445703]
[1753327308676,0.002,3658.5,3658.4,9.28345703]
[1753327308877,0.002,3658.5,3658.4,13.43445703]
[1753327309541,0.002,3658.5,3658.4,14.26445703]
[1753327311987,0.03790035,3658.9,3658.8,2.73313654]
[1753327312212,0.03790035,3658.9,3658.8,13.1165728]
[1753327312400,0.03790035,3658.9,3658.8,13.08924144]
[1753327312688,1e-08,3659.0,3658.9,3.28306184]
[1753327312865,1e-08,3659.0,3658.9,4.11289245]
[1753327313066,1e-08,3659.0,3658.9,4.57979245]
[1753327313395,1e-08,3659.0,3658.9,6.49836794]
[1753327313693,1e-08,3659.0,3658.9,6.47103733]
[1753327320114,1e-08,3659.0,3658.9,6.00413733]
[1753327320317,1e-08,3659.0,3658.9,7.43306184]
[1753327320818,1e-08,3659.0,3658.9,7.89996184]
[1753327321520,1e-08,3659.0,3658.9,7.43306184]
[1753327322618,1e-08,3659.0,3658.9,3.28306184]
[1753327322780,0.00200001,3659.0,3658.9,3.77729245]
[1753327322979,0.00200001,3659.0,3658.9,10.19489794]
[1753327323182,0.00200001,3659.0,3658.9,10.16756733]
[1753327326311,1e-08,3659.1,3659.0,3.28298715]
[1753327326648,1e-08,3659.1,3659.0,3.88588715]
[1753327326922,1e-08,3659.1,3659.0,8.03588715]
[1753327327115,1e-08,3659.1,3659.0,9.82480309]
[1753327329207,1e-08,3659.1,3659.0,10.61710309]
[1753327329596,1e-08,3659.1,3659.0,13.61710309]
[1753327330110,1e-08,3659.1,3659.0,9.46710309]
[1753327330308,1e-08,3659.1,3659.0,13.61710309]
[1753327335447,1e-08,3659.1,3659.0,9.46710309]
[1753327335649,1e-08,3659.1,3659.0,13.61610309]
[1753327336445,1e-08,3659.1,3659.0,9.46710309]
[1753327336824,1e-08,3659.1,3659.0,13.61610309]
[1753327337520,1e-08,3659.1,3659.0,13.14920309]
[1753327337956,1e-08,3659.1,3659.0,13.59690309]
[1753327344436,0.002,3659.3,3659.0,13.59690309]
[1753327344636,0.002,3659.3,3659.2,7.72480692]
[1753327344952,0.002,3659.3,3659.2,11.87380692]
[1753327345149,0.002,3659.3,3659.2,12.32150692]
[1753327345631,0.002,3659.3,3659.2,11.87380692]
[1753327347139,0.002,3659.3,3659.2,12.32150692]
[1753327347342,0.002,3659.7,3659.6,3.28253907]
[1753327347679,0.002,3659.7,3659.6,11.76483361]
[1753327347837,0.002,3659.7,3659.6,12.18520822]
[1753327348041,0.002,3659.7,3659.6,12.32120822]
[1753327349359,0.002,3659.7,3659.6,11.87350822]
[1753327349560,0.002,3659.7,3659.6,13.45547147]
[1753327350687,0.002,3659.7,3659.6,13.90317147]
[1753327350991,0.002,3659.7,3659.6,13.45547147]
[1753327351154,0.002,3659.7,3659.6,9.30647147]
[1753327351354,0.002,3659.7,3659.6,13.45547147]
[1753327353730,0.002,3659.7,3659.6,13.45447147]
[1753327355594,0.002,3659.7,3659.6,11.87250822]
[1753327357862,0.002,3659.7,3659.6,12.32020822]
[1753327359100,0.002,3659.7,3659.6,7.72450822]
[1753327359307,0.002,3659.7,3659.6,11.87250822]
[1753327360004,0.002,3659.7,3659.6,12.30920822]
[1753327360295,0.04,3659.9,3659.8,2.73238974]
[1753327360505,0.04,3659.9,3659.8,6.90771363]
[1753327360690,0.04,3659.9,3659.8,6.88038974]
[1753327360892,0.04,3659.9,3659.8,7.01638974]
[1753327361102,0.04,3659.9,3659.8,8.63535539]
[1753327361992,0.04,3659.9,3659.8,9.07205539]
[1753327362625,0.04,3659.9,3659.8,10.40365539]
[1753327367232,0.04,3661.9,3660.0,0.8205]
[1753327367386,0.04,3661.9,3659.9,2.73231509]
[1753327367387,0.5264,3661.2,3659.9,2.73227958]
[1753327367585,0.5264,3660.7,3660.6,2.7317926]
[1753327367905,0.9807,3660.7,3660.6,6.8797926]
[1753327368418,0.9807,3660.7,3660.6,7.4297926]
[1753327370817,0.9807,3660.7,3660.5,6.88384033]
[1753327371131,0.5264,3660.7,3660.6,6.8837926]
[1753327371628,0.5264,3660.7,3660.6,2.7317926]
[1753327371830,0.9807,3660.7,3660.6,2.7317926]
[1753327373004,0.9807,3660.7,3660.5,4.152]
[1753327373210,0.4543,3660.6,3660.4,6.88394022]
[1753327373531,0.4543,3660.6,3660.3,6.88399306]
[1753327373830,0.4543,3660.6,3660.5,2.73186723]
[1753327374131,0.5264,3660.7,3660.6,2.7317926]
[1753327374434,0.9807,3660.7,3660.6,2.7317926]
[1753327374734,0.9807,3660.7,3660.5,7.03780349]
[1753327374895,0.5264,3660.7,3660.6,2.7317926]
[1753327375525,0.9807,3660.7,3660.5,6.8858448]
[1753327375709,0.4543,3660.6,3660.5,7.4358448]
[1753327375909,0.4543,3660.6,3660.2,4.30596915]
[1753327376097,0.4543,3660.5,3660.3,2.73200868]
[1753327376315,0.4543,3660.5,3660.4,4.154]
[1753327376530,0.4543,3660.5,3660.3,2.73200868]
[1753327376720,0.4543,3660.5,3660.3,6.88600868]
[1753327377034,0.5264,3660.4,3660.3,6.88600868]
[1753327377250,0.9807,3660.4,3660.0,0.55]
[1753327377400,0.9807,3660.4,3660.3,0.136]
[1753327377401,0.5264,3660.4,3660.3,0.136]
[1753327378106,0.9807,3660.4,3660.3,0.136]
[1753327380534,0.9807,3660.4,3659.4,3.8263]
[1753327380535,0.9807,3660.4,3659.0,0.001]
[1753327380738,2.73231509,3659.9,3659.8,0.136]
[1753327380958,30.0,3659.9,3659.2,0.136]
[1753327381244,2.73261459,3659.5,3659.2,0.136]
[1753327381424,3.28010889,3659.4,3659.2,0.136]
[1753327381627,6.73440889,3659.4,3659.0,0.001]
[1753327381828,6.71338841,3659.4,3659.0,0.001]
[1753327383441,10.86738841,3659.4,3659.0,0.001]
[1753327385724,40.86738841,3659.4,3659.0,0.001]
[1753327389935,3.9807,3659.4,3659.0,0.001]
[1753327390145,8.1337,3659.4,3659.0,0.001]
[1753327390844,10.86638841,3659.4,3659.0,0.001]
[1753327392576,8.1337,3659.4,3659.0,0.001]
[1753327393983,8.1337,3659.4,3659.0,2.73395976]
[1753327394168,3.9807,3659.4,3659.0,2.73395976]
[1753327394477,8.1327,3659.4,3659.0,2.73395976]
[1753327394679,8.1327,3659.4,3659.0,0.001]
[1753327395441,3.5264,3659.4,3659.0,2.7339801]
[1753327395777,8.1218,3659.4,3659.0,2.7339801]
[1753327396346,7.6784,3659.4,3659.0,0.001]
[1753327396658,8.1218,3659.4,3659.0,0.001]
[1753327397647,7.6784,3659.4,3659.0,2.7339669]
[1753327397846,8.1218,3659.4,3659.1,2.77290589]
[1753327398091,8.1218,3659.4,3659.2,2.73283495]
[1753327398300,7.6784,3659.4,3659.1,2.77289883]
[1753327398811,8.1218,3659.4,3659.1,2.77289883]
[1753327400697,8.1218,3659.4,3659.1,0.04]
[1753327404799,40.85448841,3659.4,3659.1,0.04]
[1753327406612,45.16045756,3659.4,3659.1,0.04]
[1753327407377,40.85448841,3659.4,3659.1,0.04]
[1753327409282,41.44474691,3659.4,3659.1,0.04]
[1753327412497,40.85448841,3659.4,3659.1,0.04]
[1753327412805,41.36458194,3659.4,3659.1,0.04]
[1753327412970,8.1238,3659.4,3659.1,0.04]
[1753327413177,10.85648841,3659.4,3659.1,0.04]
[1753327416108,9.88568841,3659.4,3659.1,0.04]
[1753327419311,3.0,3659.4,3659.1,0.04]
[1753327419610,4.154,3659.4,3659.3,1.2496]
[1753327419810,4.154,3659.4,3659.3,4.81530035]
[1753327421108,3.0,3659.7,3659.3,4.81530035]
[1753327421310,4.153,3659.6,3659.3,3.54346309]
[1753327421520,4.153,3659.6,3659.4,0.4389]
[1753327422399,4.153,3659.6,3659.4,3.17157571]
[1753327422891,4.153,3659.6,3659.4,0.4389]
[1753327424616,4.153,3659.6,3659.5,2.73261374]
[1753327424938,4.153,3659.6,3659.5,8.1050842]
[1753327426218,4.151,3659.6,3659.5,5.37247046]
[1753327426412,4.151,3659.6,3659.5,8.1050842]
[1753327427609,3.0,3660.7,3660.1,2.73212296]
[1753327427807,3.0,3660.5,3660.1,0.4389]
[1753327428006,3.0,3660.5,3660.2,2.73208478]
[1753327428207,7.0944,3660.8,3660.4,2.73194176]
[1753327428407,0.002,3660.9,3660.5,3.17071738]
[1753327428644,4.153,3660.7,3660.6,2.7317926]
[1753327429024,4.153,3660.7,3660.6,3.1706926]
[1753327429537,4.153,3660.7,3660.6,3.3066926]
[1753327437919,4.153,3660.7,3660.6,2.8677926]
[1753327438118,4.153,3660.7,3660.6,4.64485993]
[1753327438755,0.002,3660.9,3660.8,2.73164335]
[1753327438922,0.002,3660.9,3660.8,7.1736125]
[1753327439131,0.002,3660.9,3660.8,7.6125125]
[1753327440266,0.002,3660.9,3660.8,8.3756125]
[1753327440472,0.002,3660.9,3660.8,9.54234974]
[1753327441560,0.002,3660.9,3660.8,10.09234974]
[1753327442740,0.002,3660.9,3660.8,14.24234974]
[1753327444865,0.002,3660.9,3660.8,5.78638059]
[1753327445067,0.002,3660.9,3660.8,9.93538059]
[1753327446034,0.002,3660.9,3660.8,5.78638059]
[1753327446235,0.002,3660.9,3660.8,9.93538059]
[1753327446668,0.002,3660.9,3660.8,5.78638059]
[1753327446970,0.002,3660.9,3660.8,9.93538059]
[1753327447481,0.002,3660.9,3660.8,5.78638059]
[1753327447673,0.002,3660.9,3660.8,9.93538059]
[1753327454485,0.002,3660.9,3660.8,9.93638059]
[1753327458295,0.002,3660.9,3660.8,9.93438059]
[1753327459389,0.002,3660.9,3660.8,5.78738059]
[1753327459567,0.002,3660.9,3660.8,9.93438059]
[1753327461999,0.002,3660.9,3660.8,9.65444974]
[1753327462300,0.002,3660.9,3660.8,13.80144974]
[1753327462503,0.002,3660.9,3660.8,14.25044974]
[1753327469612,1e-08,3660.9,3660.8,14.25044974]
[1753327471120,1e-08,3661.3,3661.2,3.28134491]
[1753327471288,1e-08,3661.3,3661.2,12.33560542]
[1753327471489,1e-08,3661.3,3661.2,12.47160542]
[1753327472627,1e-08,3661.3,3661.2,12.92060542]
[1753327474737,1e-08,3661.3,3661.2,12.47160542]
[1753327476500,0.00200001,3661.3,3661.2,12.47160542]
[1753327477248,0.00200001,3661.3,3661.2,12.47060542]
[1753327478324,0.00200001,3661.3,3661.2,8.32460542]
[1753327478637,0.00200001,3661.3,3661.2,12.47060542]
[1753327480341,1e-08,3661.3,3661.2,13.69150542]
[1753327487046,1e-08,3661.3,3661.2,13.23600542]
[1753327487248,0.46820001,3661.3,3661.2,7.01334491]
[1753327488020,0.46820001,3661.3,3661.2,0.136]
[1753327488226,0.48922049,3661.3,3661.2,0.136]
[1753327489859,0.46820001,3661.3,3661.2,2.86734491]
[1753327490062,1e-08,3661.3,3661.2,9.12839352]
[1753327490670,1e-08,3661.3,3661.2,13.27439352]
[1753327492272,1e-08,3661.3,3661.2,8.96842437]
[1753327492645,1e-08,3661.3,3661.2,13.27439352]
[1753327493376,1e-08,3661.3,3661.2,7.01334491]
[1753327493593,0.46820001,3661.3,3661.2,7.01334491]
[1753327494982,1e-08,3661.3,3661.2,7.01334491]
[1753327495775,1e-08,3661.3,3661.2,11.31931406]
[1753327495984,0.46820001,3661.3,3661.2,7.01334491]
[1753327496141,0.46820001,3661.3,3661.2,2.86734491]
[1753327496480,0.46820001,3661.3,3661.2,7.01334491]
[1753327497453,1e-08,3661.3,3661.2,11.77481406]
[1753327497767,1e-08,3661.3,3661.2,13.04308192]
[1753327498338,1e-08,3661.3,3661.2,13.59308192]
[1753327498754,1e-08,3661.3,3661.2,9.44708192]
[1753327498954,1e-08,3661.3,3661.2,13.59308192]
[1753327499962,1e-08,3661.3,3661.2,13.91258192]
[1753327500359,1e-08,3661.3,3661.2,13.45708192]
[1753327500571,1e-08,3661.3,3661.2,4.45511277]
[1753327500865,1e-08,3661.3,3661.2,12.18881406]
[1753327501265,1e-08,3661.3,3661.2,13.00331406]
[1753327504105,1e-08,3661.3,3661.2,8.85731406]
[1753327504304,1e-08,3661.3,3661.2,12.54781406]
[1753327504602,1e-08,3661.3,3661.2,9.16088861]
[1753327504765,1e-08,3661.3,3661.2,4.85491946]
[1753327505100,1e-08,3661.3,3661.2,9.00091946]
[1753327505467,1e-08,3661.3,3661.2,7.42734491]
[1753327505667,1e-08,3661.3,3661.2,3.28134491]
[1753327507199,0.46820001,3661.3,3661.2,2.73134491]
[1753327508784,1e-08,3661.3,3661.2,2.73134491]
[1753327509807,1e-08,3661.3,3661.2,3.72344491]
[1753327510008,1e-08,3661.3,3661.2,5.35032944]
[1753327512576,1e-08,3661.3,3661.2,4.80032944]
[1753327513085,1e-08,3661.3,3661.2,4.35822944]
[1753327513392,1e-08,3661.3,3661.2,10.34684288]
[1753327513606,1e-08,3661.3,3661.2,10.31952944]
[1753327518492,1e-08,3661.3,3661.2,9.87742944]
[1753327518682,1e-08,3661.3,3661.2,14.18339859]
[1753327519104,1e-08,3661.3,3661.2,14.62549859]
[1753327520408,1e-08,3661.3,3661.2,10.47949859]
[1753327520616,1e-08,3661.3,3661.2,14.62549859]
[1753327520815,1e-08,3661.3,3661.2,10.47949859]
[1753327521002,1e-08,3661.3,3661.2,14.62549859]
[1753327521377,1e-08,3661.3,3661.2,10.47949859]
[1753327521579,1e-08,3661.3,3661.2,14.62549859]
[1753327526790,1e-08,3661.7,3661.6,3.28104653]
[1753327526989,1e-08,3661.7,3661.6,8.68312033]
[1753327527302,1e-08,3661.9,3661.8,3.28089737]
[1753327527620,1e-08,3661.9,3661.8,3.30820634]
[1753327527790,1e-08,3661.9,3661.8,4.65430634]
[1753327527985,1e-08,3661.9,3661.8,4.62699737]
[1753327528189,1e-08,3661.9,3661.8,6.24080914]
[1753327529214,1e-08,3661.9,3661.8,9.24080914]
[1753327529791,1e-08,3661.9,3661.4,2.73113167]
[1753327529792,0.52640001,3661.9,3661.0,0.7649]
[1753327529998,0.95840001,3661.9,3661.0,4.30596915]
[1753327530214,0.95840001,3661.9,3661.3,4.30596915]
[1753327530414,0.95840001,3661.9,3661.6,2.73099056]
[1753327530630,0.432,3661.8,3661.7,2.7309704]
[1753327531729,1e-08,3661.9,3661.8,2.73089737]
[1753327533247,0.43200001,3661.9,3661.8,2.73089737]
[1753327533446,1e-08,3661.9,3661.8,2.73089737]
[1753327534936,1e-08,3661.9,3661.7,3.28095969]
[1753327535114,0.43200001,3661.9,3661.7,3.28095969]
[1753327535314,0.43200001,3661.9,3661.7,3.28093434]
[1753327535509,0.43200001,3661.9,3661.8,2.73089737]
[1753327535747,1e-08,3661.9,3661.8,2.73089737]
[1753327539922,1e-08,3661.9,3661.8,2.86689737]
[1753327540464,1e-08,3661.9,3661.8,0.136]
[1753327540638,1e-08,3661.9,3661.8,2.86689737]
[1753327541537,1e-08,3661.9,3661.8,0.136]
[1753327541750,1e-08,3661.9,3661.8,2.86689737]
[1753327545060,1e-08,3661.9,3661.8,2.86789737]
[1753327545359,0.00200001,3661.9,3661.8,2.86789737]
[1753327548942,0.00200001,3661.9,3661.8,0.137]
[1753327549139,0.00200001,3661.9,3661.8,2.86789737]
[1753327550485,0.96860001,3661.9,3661.8,0.137]
[1753327550836,0.00200001,3661.9,3661.8,0.137]
[1753327551234,0.00200001,3661.9,3661.8,2.86789737]
[1753327558988,0.00200001,3661.9,3661.8,12.89965232]
[1753327559141,1e-08,3661.9,3661.8,14.10074335]
[1753327560044,0.002,3662.7,3662.6,3.28030087]
[1753327560257,0.002,3662.7,3662.6,12.57177002]
[1753327560460,1e-08,3662.7,3662.6,13.15487002]
[1753327560661,1e-08,3662.7,3662.6,14.74339592]
[1753327563703,1e-08,3662.7,3662.6,10.58139592]
[1753327563913,1e-08,3662.7,3662.6,14.74439592]
[1753327564191,1e-08,3662.9,3662.8,3.28015179]
[1753327564359,1e-08,3662.9,3662.8,7.44215179]
[1753327564560,1e-08,3662.9,3662.8,9.72789656]
[1753327566502,1e-08,3662.9,3662.8,10.51849656]
[1753327566681,0.04,3663.9,3663.5,3.27963013]
[1753327566880,0.04,3663.9,3663.5,11.74659928]
[1753327567064,0.04,3663.9,3663.5,13.33296085]
[1753327567263,0.04,3663.9,3663.5,9.17196085]
[1753327567458,0.04,3663.9,3663.5,10.41396085]
[1753327567683,0.04,3663.9,3663.5,14.57596085]
[1753327568091,0.04,3664.9,3664.0,0.55]
[1753327568092,0.5664,3664.9,3664.0,0.55]
[1753327568291,0.04,3664.9,3664.8,3.27866186]
[1753327568490,0.04,3664.9,3664.8,0.136]
[1753327568491,0.4802,3664.9,3664.8,0.136]
[1753327568690,0.04,3664.9,3664.8,3.86176186]
[1753327569001,0.04,3664.9,3664.8,8.02976186]
[1753327569205,0.04,3664.9,3664.8,12.33573101]
[1753327569372,0.04,3664.9,3664.8,14.1945441]
[1753327569572,1e-08,3664.9,3664.8,14.1945441]
[1753327569969,1e-08,3664.9,3664.8,17.9894441]
[1753327570168,1e-08,3664.9,3664.8,9.51547495]
[1753327570475,1e-08,3664.9,3664.8,17.9934441]
[1753327570676,1e-08,3664.9,3664.8,4.65666186]
[1753327570876,1e-08,3664.9,3664.8,8.83146186]
[1753327571079,1e-08,3664.9,3664.8,13.13743101]
[1753327571888,1e-08,3664.9,3664.8,16.13743101]
[1753327572288,0.04,3665.9,3665.8,4.0733175]
[1753327572491,0.04,3665.9,3665.8,8.37928665]
[1753327572706,0.04712571,3666.9,3666.8,0.55]
[1753327573107,0.04712571,3666.9,3666.8,4.07277355]
[1753327573281,0.57352571,3666.9,3665.9,0.7956]
[1753327573472,0.9859151,3666.9,3666.0,4.75186915]
[1753327573777,0.9859151,3666.9,3666.8,4.07277355]
[1753327573778,0.4595151,3666.9,3666.8,4.07277355]
[1753327573978,0.4595151,3666.9,3666.2,5.12526915]
[1753327574311,0.4595151,3666.9,3666.6,0.55]
[1753327574603,0.4595151,3666.9,3666.8,7.5831427]
[1753327574811,0.4595151,3666.9,3666.8,8.0290427]
[1753327574991,0.4595151,3666.9,3666.8,8.8483427]
[1753327575191,0.04,3667.9,3667.8,3.27643001]
[1753327575771,0.04,3667.9,3667.8,3.72233001]
[1753327576209,1e-08,3667.9,3667.8,6.74959431]
[1753327576373,0.04,3668.9,3668.8,3.27568687]
[1753327576709,0.04,3668.9,3668.8,8.36935602]
[1753327576911,0.04,3668.9,3668.8,8.81525602]
[1753327577110,0.04,3668.9,3668.8,4.50928687]
[1753327577276,0.04,3668.9,3668.8,1.3377]
[1753327577475,0.4938,3668.9,3668.3,0.55]
[1753327577809,0.4938,3668.9,3667.8,4.75186915]
[1753327577810,2.72583386,3668.7,3667.8,0.7935]
[1753327578012,0.47482048,3668.6,3667.3,5.09946915]
[1753327578311,0.5264,3668.5,3667.3,0.7935]
[1753327578484,0.5264,3668.5,3667.5,4.30596915]
[1753327578485,2.72605457,3668.4,3667.5,4.30596915]
[1753327578686,0.4538,3668.3,3667.3,0.7935]
[1753327578990,0.4538,3668.3,3666.1,2.72768266]
[1753327578991,2.72650434,3667.7,3666.1,0.791]
[1753327579204,0.5264,3667.8,3667.0,2.72701493]
[1753327579408,0.5264,3667.8,3666.8,0.4459]
[1753327579578,2.72659315,3667.6,3666.7,2.72718829]
[1753327579909,0.4538,3667.5,3666.1,0.791]
[1753327580114,0.4538,3667.5,3666.6,2.72725504]
[1753327580309,2.72686205,3667.3,3666.4,2.72741035]
[1753327580495,0.4538,3667.4,3666.5,0.02727396]
[1753327580696,0.4538,3667.4,3666.8,2.72712038]
[1753327580899,0.5264,3667.8,3666.9,0.02727099]
[1753327581100,3.0,3668.2,3667.7,2.72643649]
[1753327581315,3.0,3668.2,3667.4,0.9959]
[1753327581610,3.0,3668.2,3666.9,0.813]
[1753327581805,3.18006182,3668.1,3667.3,2.72674319]
[1753327582003,0.4538,3668.1,3667.5,2.72662794]
[1753327582513,0.4538,3668.1,3667.0,0.55]
[1753327582514,0.4538,3668.1,3667.9,0.136]
[1753327582709,2.72628135,3668.0,3667.9,0.136]
[1753327582911,3.18008135,3668.0,3667.9,0.136]
[1753327583099,2.72653309,3667.7,3667.0,2.72700156]
[1753327583300,2.72653309,3667.7,3666.5,2.72735701]
[1753327583301,2.72665092,3667.6,3666.5,2.72735701]
[1753327583492,2.72665092,3667.6,3667.3,0.136]
[1753327583811,3.18048253,3667.5,3667.3,0.136]
[1753327584011,0.4538,3667.5,3667.3,0.136]
[1753327584182,0.4538,3667.4,3667.3,0.136]
[1753327584584,3.18052738,3667.4,3667.3,0.136]
[1753327584882,0.9802,3667.4,3667.3,0.136]
[1753327585077,0.5264,3667.4,3667.3,0.136]
[1753327585312,5.2122,3667.4,3667.3,0.136]
[1753327585615,7.93892738,3667.4,3667.3,0.136]
[1753327585917,2.7268439,3667.3,3667.0,0.136]
[1753327586081,0.4538,3667.3,3667.0,0.136]
[1753327586285,0.4538,3667.2,3667.0,0.136]
[1753327587002,4.7584,3667.4,3667.0,0.136]